Cogmind - Beta 11 @@@ ROGUE MODE // 2022.04.06 @ 20:57:10 Player: MistressMomoko Result: Destroyed by G-47 Trooper with Particle Gun Performance ------------- Evolutions (0) 0 Regions Visited (2) 400 Robots Destroyed (4) 20 Value Destroyed (77) 77 Prototype IDs (0) 0 Alien Tech Used (0) 0 Bonus (0) 0 TOTAL SCORE: 497 Bonus ------- None Cogmind --------- Core Integrity 0/250 Matter 280/300 Energy 123/125 System Corruption 0% Temperature Cool (13) Movement Treading (160) Location -10/Mines Parts ------- > --- POWER (1) -------- Light Ion Engine > --- PROPULSION (2) --- Light Treads > --- UTILITY (2) ------ Small Storage Unit Seismic Detector > --- WEAPON (2) ------- Small Laser > --- INVENTORY (8) ---- Light Ion Engine Wheel Compact Wheel High-capacity Matter Pod (5) Light Assault Rifle Makeshift Spear Peak State ------------ > --- POWER ------------ Light Ion Engine > --- PROPULSION ------- Light Treads Light Treads > --- UTILITY ---------- Small Storage Unit Seismic Detector > --- WEAPON ----------- EM Pulse Gun Makeshift Spear > --- INVENTORY -------- Light Ion Engine Wheel Compact Wheel High-capacity Matter Pod Small Laser Light Assault Rifle Light Assault Rifle [Rating: 10] Favorites ----------- Power Light Ion Engine Engine Light Ion Engine Propulsion Light Treads Treads Light Treads Leg Aluminum Leg Utility Small Storage Unit Device Seismic Detector Storage Small Storage Unit Weapon Light Assault Rifle Energy Gun EM Pulse Gun Ballistic Gun Light Assault Rifle Piercing Weapon Makeshift Spear Build | -11 -10 -10 ------- Run | Scr Mat Min Slots Evolved . | . . . Power . | . . . Propulsion . | . . . Utility . | . . . Weapon . | . . . Parts Attached 13 | 5 . 8 Power 2 | 1 . 1 Engine 2 | 1 . 1 Core . | . . . Reactor . | . . . Propulsion 4 | 2 . 2 Treads 2 | . . 2 Leg 2 | 2 . . Wheel . | . . . Hover . | . . . Flight . | . . . Utility 2 | 1 . 1 Device 1 | . . 1 Storage 1 | 1 . . Processor . | . . . Hackware . | . . . Protection . | . . . Artifact . | . . . Weapon 5 | 1 . 4 Energy Gun 2 | . . 2 Energy Cannon . | . . . Ballistic Gun 2 | 1 . 1 Ballistic Cannon . | . . . Launcher . | . . . Special Weapon . | . . . Impact Weapon . | . . . Slashing Weapon . | . . . Piercing Weapon 1 | . . 1 Special Melee Weapon . | . . . Unidentified Prototypes . | . . . Parts Lost 5 | . . 5 Power 1 | . . 1 Propulsion 2 | . . 2 Utility . | . . . Weapon 2 | . . 2 Highest Loss Streak 3 | . . 3 To Critical Strikes . | . . . Average Slot Usage (%) 89 | . 71 94 Engine 13 | . 14 13 Treads 19 | . . 25 Leg 8 | . 28 2 Device 8 | . . 11 Storage 14 | . 14 14 Energy Gun 10 | . . 13 Ballistic Gun 13 | . 14 13 Naked Turns . | . . . Heaviest Build 13 | 11 11 13 Greatest Support 40 | 20 20 40 Greatest Overweight (x) . | . . . Average Overweight (x) . | . . . Largest Inventory Capacity 8 | 8 8 8 Average Capacity 7 | 7 8 8 Most Carried 7 | 7 7 7 Average Carried 5 | 3 7 6 Final Capacity 8 | 8 8 8 Final Carried 7 | 7 7 6 Class Distribution -------------------- 100% | Mutant Dominant Class ---------------- Mutant | -10/Materials Mutant | -10/Mines Resources | -11 -10 -10 ----------- Run | Scr Mat Min Matter Collected 299 | 223 . 76 Remotely . | . . . Salvage Created 66 | . . 66 Parts 4 | . . 4 Haulers Intercepted . | . . . Recyclers Shooed . | . . . Parts Field Recycled . | . . . Retrieved Matter . | . . . Parts Self-Destructed . | . . . Prevented . | . . . Kills | -11 -10 -10 ------- Run | Scr Mat Min Combat Hostiles Destroyed 4 | . . 4 Guns 3 | . . 3 Classes Destroyed 2 | . . 2 Swarmer 3 | . . 3 Grunt 1 | . . 1 Best Kill Streak 3 | . . 3 Combat Bots Only 3 | . . 3 Max Kills in Single Turn 1 | . . 1 Gunslinging . | . . . Exploded . | . . . Melee . | . . . Uniques/NPCs Destroyed . | . . . Combat | -11 -10 -10 -------- Run | Scr Mat Min Damage Taken 1005 | . 171 834 Core 257 | . 44 213 Absorbed by Shields . | . . . Core Remaining (%) 100 | 100 . . Volleys Fired 15 | . 1 14 Largest 2 | . 1 2 Hottest 60 | . 20 60 Shots Fired 24 | . 1 23 Gun 24 | . 1 23 Cannon . | . . . Launcher . | . . . Special . | . . . Kinetic 14 | . 1 13 Thermal 3 | . . 3 Explosive . | . . . Electromagnetic 7 | . . 7 Robot Hit Streak 3 | . . 3 Robot Miss Streak 2 | . . 2 Penetration Max . | . . . Secondary Targets 1 | . . 1 Max Gunslinging Chain 1 | . . 1 Shots Hit Robots 14 | . . 14 Core Hits 6 | . . 6 Critical Kills . | . . . Critical Parts Destroyed . | . . . Critical Strikes 1 | . . 1 Corrupt 1 | . . 1 Melee Attacks 1 | . . 1 Impact . | . . . Slashing . | . . . Piercing 1 | . . 1 Sneak Attacks . | . . . Combat Hostiles . | . . . Follow-up Attacks . | . . . Damage Inflicted 172 | . . 172 Guns 133 | . . 133 Cannons . | . . . Explosions . | . . . Melee 32 | . . 32 Ramming 7 | . . 7 Kinetic 76 | . . 76 Thermal 11 | . . 11 Explosive . | . . . Electromagnetic 46 | . . 46 Impact . | . . . Slashing . | . . . Piercing 32 | . . 32 Highest Corruption . | . . . Average Corruption . | . . . Corruption Purged . | . . . Corruption Blocked . | . . . Overload Shots . | . . . Overflow Damage . | . . . Projectiles . | . . . Explosions . | . . . Melee . | . . . Knockbacks . | . . . Impact . | . . . Kinetic . | . . . Secondary . | . . . Self-Inflicted Damage . | . . . Shots . | . . . Rammed 1 | . . 1 Targets Rammed 1 | . . 1 Kicked . | . . . Crushed . | . . . Highest Temperature 110 | . . 110 Average Temperature 33 | . . 33 Received Heat Transfer 474 | . 96 378 Siege Activations . | . . . Robots Corrupted . | . . . Combat Hostiles . | . . . Parts Fried . | . . . Impact Corruptions . | . . . Robots Melted . | . . . Combat Hostiles . | . . . Parts Melted . | . . . Heat Transferred 25 | . . 25 Parts Sabotaged . | . . . Parts Stolen . | . . . Parts Stripped . | . . . Power Chain Reactions . | . . . Missiles Intercepted . | . . . Alert | -11 -10 -10 ------- Run | Scr Mat Min Peak Influence 66 | . 44 66 Initial 16 | . . 16 Average 45 | . 21 59 Maximum Alert Level . | . . . Low Security (%) 100 | 100 100 100 Level 1 . | . . . Level 2 . | . . . Level 3 . | . . . Level 4 . | . . . Level 5 . | . . . High Security . | . . . Max Security . | . . . Squads Dispatched 2 | . 2 . Investigation 1 | . 1 . Extermination . | . . . Reinforcement 1 | . 1 . Assault . | . . . Garrison . | . . . Intercept . | . . . Searches Triggered . | . . . Construction Impeded . | . . . Haulers Reinforced . | . . . Active Scanning Responses . | . . . Cargo Convoy Interrupts . | . . . Stealth | -11 -10 -10 --------- Run | Scr Mat Min Distress Signals . | . . . Communications Jammed . | . . . Distress Signals . | . . . Times Spotted 12 | . 5 7 Peak Tracking Total 4 | . 4 4 Tactical Retreats . | . . . Traps | -11 -10 -10 ------- Run | Scr Mat Min Traps Triggered 1 | . 1 . Indirectly . | . . . Trap Hack Attempts . | . . . Triggered . | . . . Disarmed . | . . . Reprogrammed . | . . . Reused . | . . . Traps Extracted . | . . . Installed . | . . . Triggered . | . . . Machines | -11 -10 -10 ---------- Run | Scr Mat Min Machines Disabled . | . . . Max in Single Turn . | . . . Machines Sabotaged . | . . . Garrisons Compromised . | . . . Overloaded Fab Kills . | . . . Hacking | -11 -10 -10 --------- Run | Scr Mat Min Machines Accessed 1 | . 1 . Terminals 1 | . 1 . Fabricators . | . . . Repair Stations . | . . . Recycling Units . | . . . Scanalyzers . | . . . Garrison Access . | . . . Total Hacks 1 | . 1 . Successful 1 | . 1 . Failed . | . . . Catastrophic . | . . . Database Lockouts . | . . . Manual . | . . . Terminals 1 | . 1 . Fabricators . | . . . Repair Stations . | . . . Recycling Units . | . . . Scanalyzers . | . . . Garrison Access . | . . . Terminal Hacks 1 | . 1 . Zone Layout 1 | . 1 . Fabricator Hacks . | . . . Repair Station Hacks . | . . . Recycling Unit Hacks . | . . . Scanalyzer . | . . . Garrison Access Hacks . | . . . Unauthorized Hacks . | . . . Terminals . | . . . Fabricators . | . . . Repair Stations . | . . . Recycling Units . | . . . Scanalyzers . | . . . Garrison Access . | . . . Data Cores Recovered . | . . . Used . | . . . Hacking Detections . | . . . Full Trace Events . | . . . Feedback Events . | . . . Feedback Blocked . | . . . Robot Schematics Acquired . | . . . Robots Built . | . . . Authchips . | . . . Time . | . . . Total Robot Build Rating . | . . . Part Schematics Acquired . | . . . Parts Built . | . . . Authchips . | . . . Time . | . . . Total Part Build Rating . | . . . Parts Repaired . | . . . Time . | . . . Parts Recycled . | . . . Recycled Matter . | . . . Retrieved Matter . | . . . Retrieved Components . | . . . Parts Scanalyzed . | . . . Part Schematics Acquired . | . . . Parts Damaged . | . . . Bothacking | -11 -10 -10 ------------ Run | Scr Mat Min Used RIF Installer . | . . . Robots Hacked . | . . . Non-combat . | . . . Combat . | . . . Robot Hacks Applied . | . . . Relay Couplers Released . | . . . Fabnet Peak Effective % . | . . . Robots Rewired . | . . . Allies Hacked . | . . . Hacks Repelled . | . . . Allies | -11 -10 -10 -------- Run | Scr Mat Min Total Allies . | . . . Largest Group . | . . . Highest-Rated Group . | . . . Highest-Rated Ally . | . . . Total Orders . | . . . Ally Attacks . | . . . Total Damage . | . . . Kills . | . . . Allies Corrupted . | . . . Allies Melted . | . . . Intel | -11 -10 -10 ------- Run | Scr Mat Min Robot Analysis Total . | . . . Derelict Logs Recovered 1 | . . 1 Drone Launches . | . . . Drone Recoveries . | . . . Exploration | -11 -10 -10 ------------- Run | Scr Mat Min Turns Passed 614 | 76 117 421 Spaces Moved 365 | 54 77 234 Core 7 | 7 . . Treads 222 | . . 222 Legs 136 | 47 77 12 Wheels . | . . . Hover . | . . . Flight . | . . . Fastest Speed 50 | 50 120 120 Average Speed 142 | 110 120 157 Slowest Speed 160 | 120 120 160 Overloaded Moves . | . . . Propulsion Burnouts . | . . . Robots Hopped . | . . . Cave-ins Triggered . | . . . Exploration Rate (%) 30 | 3 22 66 Regions Visited 2 Branch Regions 1 Pre-discovered Areas . | . . . Known Exits Taken . | . . . Unknown Exits Taken 2 | 1 1 . Scrap Searched 1 | . . 1 Spaces Dug . | . . . Terrain Destroyed . | . . . Melee . | . . . Projectile . | . . . AOE . | . . . Terrain Rammed . | . . . Walls Destroyed . | . . . Machines Disabled . | . . . Actions | -11 -10 -10 --------- Run | Scr Mat Min Total 435 | 70 101 264 Wait 24 | . 24 . Move 363 | 53 76 234 Hop . | . . . Pick Up 17 | 12 . 5 Fast Attach . | . . . Attach 11 | 5 . 6 Detach . | . . . Swap 2 | . . 2 Drop 1 | . . 1 Fire 15 | . 1 14 Melee 1 | . . 1 Ram . | . . . Kick . | . . . Crush 1 | . . 1 Escape Stasis . | . . . Rewire . | . . . Trap . | . . . Miscellaneous . | . . . Route ------- -11/Scrapyard -10/Materials (discovered 2 exits: [*Min x2]) -10/Mines History --------- Turn | Location | Event 4 | -11/Scrapyard | Discovered new exit (range 15) 77 | -11/Scrapyard | Entered Materials 152 | -10/Materials | Discovered new exit (range 16) 181 | -10/Materials | Discovered new exit (range 11) 194 | -10/Materials | Entered Mines 307 | -10/Mines | Build established: Mutant 456 | -10/Mines | A weapon hastily lodged in a ceiling crevice suddenly fell to the ground 528 | -10/Mines | Learned Materials emergency access door positions 579 | -10/Mines | Core integrity fell below 50% 602 | -10/Mines | Core integrity fell below 20% 611 | -10/Mines | Excavation squad dispatched 611 | -10/Mines | A large section of the Mines collapsed 615 | -10/Mines | Destroyed by G-47 Trooper with Particle Gun Last Messages --------------- 00299_ Acquired Hcp. Matter Pod. 00447_ K-01 Serf collects debris. 00456_ A Mak. Spear has been hastily shoved under some rubble with a note attached: "Stab them where it hurts!" 00460_ Acquired Mak. Spear. 00460_ K-01 Serf collects debris. 00517_ Slammed into R-06 Scavenger. 00528_ Acquired derelict log, extracted data. Data stored: Materials emergency access points. 00581_ EM Pulse Gun destroyed. 00608_ Lgt. Assault Rifle destroyed. 00609_ Lgt. Treads destroyed. 00611_ G-47 Trooper crushed by falling debris. 00611_ G-47 Trooper destroyed. 00611_ 15 Matter crushed. 00611_ G-34 Mercenary crushed by falling debris. 00611_ G-34 Mercenary destroyed. 00611_ 3 Matter crushed. 00611_ ALERT: Suspicious cave-in, suspected derelict activity in mines. Dispatching escorted excavation squad. Map ----- +----------------------------------------------------+ | ####### #?## ##?????# #?## #???????????? | | #??#####??????# ### ##???????????? | | ## #######?????????????# ## = #????????????? | | ?# #???????????????????# = ##???????????? | | ?# #???????????????????##### #???????????? | | ? #???????????????????????## #???????????? | | ?###????????????????????????#%= ##???????????? | | ???????????????????????????# ###????????????? | | ???????????????????????????# ##??????????????? | | ???????????????????????????# #???????????????? | | ???????????????????????????## ##???????????????? | | ????????????????????????????# ###????????????????? | | ????????????????####????????# #??????????????????? | | ???????????????## ##???????# #??????????????????? | | ???????????????# #???????# #??????????????????? | | #??????????????# #??????? ???????????????????? | | ###????????????# ##??????##???????????????????? | | ######??????## ##??????????????????????????? | | ##????## #??????????????????????????? | | ##???# #??????????????????????????? | | # #????# #??????????????????????????? | | #### ##????# ##?????????????????????????? | | ???#### ##????# ##????????????????????????? | | ??????## ###?## #####???????????????????????? | | ???????## ### ## ## ######???????????????? | | ????????# # @ ????????? | | ????????# # #??????????? | | ????????## g ###### #???????????? | | ?????????#### #####???????# #???????????? | | ????????????## ##???????????????????????????? | | ?????????????# ###????????????????????????????? | | ????????????# ##??????????????????????????????? | | ??????????? ##???????????????????????????????? | | ?????????? #????????????????????????????????? | | ?????????? ##????????????????????????????????? | | ??????????? ##?????????????????????????????????? | | ???????????###???????????????????????????????????? | | ?????????????????????????????????????????????????? | | ?????????????????????????????????????????????????? | | ?????????????????????????????????????????????????? | | ?????????????????????????????????????????????????? | | ?????????????????????????????????????????????????? | | ?????????????????????????????????????????????????? | | #????????????????????????????????????????????????? | | #????????????????????????????????????????????????? | | #????????????????????????????????????????????????? | | #????????????????????????????????????????????????? | | #????????????????????????????????????????????????? | | ##???????????????????????????????????????????????? | | ###?????????????????????????????????????????????? | +----------------------------------------------------+ Best States ------------- Heat Dissipation 25 Energy Generation 10 Energy Capacity 250 Matter Stores 300 Matter Capacity 300 Sight Range 16 Terrain Scan Density 10 Evasion (%) 55 Recoil Reduction 2 Item Schematics ----------------- None Robot Schematics ------------------ None Fabricated ------------ Nothing Alien Tech Used ----------------- None Achievements -------------- None Challenges ------------ None Game ------ Seed InsulationPlasmaCanceller Manual? 0 Play Time 00:09:35 Cumulative 12.7 hours Start 2022.03.24 @ 13:33:02 End 2022.04.06 @ 20:57:10 Sessions 1 Manual Loads 0 Difficulty Rogue Special Mode None Game No. 49 Rogue 49 Adventurer 0 Explorer 0 Win Type - Total 0 Types 0/0/0/0/0/0/0/0/0 Lore% 12 Gallery% 21 Achievement% 18 Wizard Run 0 Options --------- ASCII 1 Keyboard 0 Movement Mouse Keybinds 0 Fullscreen 1 Font 18/SmallcapsGlow Map View 76x50 Tactical HUD 1 Map Filters NONE Filters NONE Steam 1 RUN: 8949eb90-cd94-471c-be94-aee68e67e1d4